[Event "*** Titled Tuesday Blitz"]
[Site "Chess.com"]
[Date "2020.03.03"]
[Round "8"]
[White "Shahinyan_ChessMood"]
[Black "Gordima"]
[Result "0-1"]
[WhiteElo "2619"]
[BlackElo "2789"]
[TimeControl "180+1"]
[EndTime "14:35:30 PST"]
[Termination "Gordima won by resignation"]

1. e4 {[%clk 0:03:00.9]} 1... e5 {[%clk 0:02:59.4]} 2. Nf3 {[%clk 0:03:00.3]}
2... Nc6 {[%clk 0:02:59.2]} 3. d4 {[%clk 0:03:00.8]} 3... exd4 {[%clk
0:02:59.3]} 4. Nxd4 {[%clk 0:03:01.7]} 4... Bc5 {[%clk 0:02:59.9]} 5. Nb3 {[%clk
0:03:01.8]} 5... Bb6 {[%clk 0:03:00.1]} 6. Nc3 {[%clk 0:03:02.4]} 6... d6 {[%clk
0:02:59.4]} 7. Qe2 {[%clk 0:03:02.2]} 7... Nf6 {[%clk 0:02:57.8]} 8. Be3 {[%clk
0:03:00.1]} 8... O-O {[%clk 0:02:52.9]} 9. O-O-O {[%clk 0:02:59]} 9... Be6
{[%clk 0:02:51.8]} 10. f3 {[%clk 0:02:53.7]} 10... Nd7 {[%clk 0:02:34.6]} 11. g4
{[%clk 0:02:18.9]} 11... a5 {[%clk 0:02:33.2]} 12. Nd4 {[%clk 0:02:09.4]} 12...
Nxd4 {[%clk 0:02:23.4]} 13. Bxd4 {[%clk 0:02:10.3]} 13... Qg5+ {[%clk
0:02:24.1]} 14. Kb1 {[%clk 0:01:59]} 14... a4 {[%clk 0:02:24.1]} 15. a3 {[%clk
0:01:50.3]} 15... Bxd4 {[%clk 0:01:57.4]} 16. Rxd4 {[%clk 0:01:51.2]} 16... Nc5
{[%clk 0:01:50.2]} 17. h4 {[%clk 0:01:35]} 17... Qf4 {[%clk 0:01:41.3]} 18. Bg2
{[%clk 0:01:09]} 18... Rfe8 {[%clk 0:01:31.3]} 19. Qd2 {[%clk 0:00:44.1]} 19...
Qxd2 {[%clk 0:01:25.8]} 20. Rxd2 {[%clk 0:00:45]} 20... Bd7 {[%clk 0:01:25.5]}
21. Rf1 {[%clk 0:00:42.3]} 21... Bc6 {[%clk 0:01:25]} 22. Ne2 {[%clk 0:00:38.9]}
22... Bb5 {[%clk 0:01:21.2]} 23. Rf2 {[%clk 0:00:39.2]} 23... Bxe2 {[%clk
0:01:21.1]} 24. Rdxe2 {[%clk 0:00:40.1]} 24... f6 {[%clk 0:01:18.6]} 25. f4
{[%clk 0:00:40.5]} 25... Re7 {[%clk 0:01:18.1]} 26. Re3 {[%clk 0:00:24.5]} 26...
Rae8 {[%clk 0:01:17.6]} 27. Rfe2 {[%clk 0:00:23.8]} 27... c6 {[%clk 0:01:16.3]}
28. Kc1 {[%clk 0:00:15.5]} 28... d5 {[%clk 0:01:08.9]} 29. e5 {[%clk 0:00:14.8]}
29... fxe5 {[%clk 0:01:09.2]} 30. fxe5 {[%clk 0:00:15.7]} 30... Nd7 {[%clk
0:01:09.7]} 31. e6 {[%clk 0:00:12]} 31... Nc5 {[%clk 0:01:09.9]} 32. g5 {[%clk
0:00:12.4]} 32... Rxe6 {[%clk 0:01:09.2]} 33. Rxe6 {[%clk 0:00:12.2]} 33... Rxe6
{[%clk 0:01:10.1]} 34. Rxe6 {[%clk 0:00:13]} 34... Nxe6 {[%clk 0:01:10.1]} 35.
Kd2 {[%clk 0:00:13.1]} 35... Kf8 {[%clk 0:00:51.7]} 36. Kc3 {[%clk 0:00:13.5]}
36... Nc5 {[%clk 0:00:52.3]} 37. Kb4 {[%clk 0:00:12.8]} 37... b6 {[%clk
0:00:51.9]} 38. Bh3 {[%clk 0:00:07.8]} 38... Ke7 {[%clk 0:00:51]} 39. Bf5 {[%clk
0:00:08.3]} 39... h6 {[%clk 0:00:50.5]} 40. b3 {[%clk 0:00:01.4]} 40... axb3
{[%clk 0:00:47.2]} 41. cxb3 {[%clk 0:00:02.3]} 41... Kd6 {[%clk 0:00:47.4]} 42.
a4 {[%clk 0:00:01.9]} 42... Na6+ {[%clk 0:00:35.1]} 43. Kc3 {[%clk 0:00:01.4]}
43... c5 {[%clk 0:00:35.7]} 44. Bc8 {[%clk 0:00:01.9]} 44... Nb4 {[%clk
0:00:36.1]} 45. gxh6 {[%clk 0:00:02.8]} 45... gxh6 {[%clk 0:00:36.1]} 46. h5
{[%clk 0:00:03.7]} 46... Nc6 {[%clk 0:00:32.5]} 47. Bg4 {[%clk 0:00:04.6]} 47...
Ne5 {[%clk 0:00:31.7]} 48. Bd1 {[%clk 0:00:05.5]} 48... d4+ {[%clk 0:00:31.9]}
49. Kc2 {[%clk 0:00:05.4]} 49... Kd5 {[%clk 0:00:32.1]} 50. Be2 {[%clk
0:00:06.3]} 50... Ke4 {[%clk 0:00:32.2]} 51. Bc4 {[%clk 0:00:06.8]} 51... Nxc4
{[%clk 0:00:31.4]} 52. bxc4 {[%clk 0:00:06.5]} 52... Ke3 {[%clk 0:00:31.7]} 0-1

[Event "*** Titled Tuesday Blitz"]
[Site "Chess.com"]
[Date "2020.03.03"]
[Round "8"]
[White "Vusatiuk_Vladimir"]
[Black "ChessicallyInclined"]
[Result "0-1"]
[WhiteElo "2365"]
[BlackElo "2494"]
[TimeControl "180+1"]
[EndTime "14:35:31 PST"]
[Termination "ChessicallyInclined won by checkmate"]

1. e4 {[%clk 0:03:00.9]} 1... d6 {[%clk 0:03:00]} 2. d4 {[%clk 0:03:00.1]} 2...
Nf6 {[%clk 0:02:59.6]} 3. Nc3 {[%clk 0:03:00.6]} 3... g6 {[%clk 0:02:59.7]} 4.
Be3 {[%clk 0:03:00.9]} 4... c6 {[%clk 0:02:59.6]} 5. Nf3 {[%clk 0:03:01.4]} 5...
Nbd7 {[%clk 0:02:57.4]} 6. h3 {[%clk 0:02:57.9]} 6... Qc7 {[%clk 0:02:57.4]} 7.
a4 {[%clk 0:02:51.6]} 7... Bg7 {[%clk 0:02:57]} 8. Bc4 {[%clk 0:02:37.9]} 8...
O-O {[%clk 0:02:55.5]} 9. O-O {[%clk 0:02:38.3]} 9... Nxe4 {[%clk 0:02:48.9]}
10. Bxf7+ {[%clk 0:02:33.4]} 10... Rxf7 {[%clk 0:02:46.9]} 11. Nxe4 {[%clk
0:02:32.6]} 11... h6 {[%clk 0:02:44.8]} 12. Nh4 {[%clk 0:02:13.4]} 12... Nf8
{[%clk 0:02:40.3]} 13. f4 {[%clk 0:02:06.8]} 13... Be6 {[%clk 0:02:14.1]} 14.
Qd3 {[%clk 0:01:58.6]} 14... Qd7 {[%clk 0:02:06]} 15. g4 {[%clk 0:01:49.1]}
15... b6 {[%clk 0:01:44.8]} 16. a5 {[%clk 0:01:37.3]} 16... Re8 {[%clk
0:01:42.1]} 17. axb6 {[%clk 0:01:21.9]} 17... axb6 {[%clk 0:01:42.1]} 18. Kh2
{[%clk 0:01:18.3]} 18... b5 {[%clk 0:01:36.3]} 19. b3 {[%clk 0:01:16.6]} 19...
Bd5 {[%clk 0:01:31]} 20. Ng3 {[%clk 0:01:15.3]} 20... e5 {[%clk 0:01:15.4]} 21.
dxe5 {[%clk 0:00:57.4]} 21... dxe5 {[%clk 0:01:12.4]} 22. Ra7 {[%clk 0:00:54.8]}
22... Qd8 {[%clk 0:00:51.5]} 23. Rxf7 {[%clk 0:00:41.9]} 23... Bxf7 {[%clk
0:00:52.4]} 24. Qxd8 {[%clk 0:00:40.5]} 24... Rxd8 {[%clk 0:00:50.4]} 25. fxe5
{[%clk 0:00:40.4]} 25... Re8 {[%clk 0:00:28.6]} 26. Nf3 {[%clk 0:00:38.8]} 26...
Bd5 {[%clk 0:00:26.8]} 27. Bf4 {[%clk 0:00:32]} 27... g5 {[%clk 0:00:24.8]} 28.
Bd2 {[%clk 0:00:30]} 28... Bxe5 {[%clk 0:00:23.9]} 29. Nxe5 {[%clk 0:00:29.9]}
29... Rxe5 {[%clk 0:00:24.8]} 30. Bc3 {[%clk 0:00:30]} 30... Re3 {[%clk
0:00:22.2]} 31. Bd4 {[%clk 0:00:30]} 31... Re6 {[%clk 0:00:20.4]} 32. Nf5 {[%clk
0:00:29.5]} 32... Re2+ {[%clk 0:00:20.4]} 33. Kg1 {[%clk 0:00:25.9]} 33... Rg2+
{[%clk 0:00:20.4]} 34. Kh1 {[%clk 0:00:26.4]} 34... Rxg4+ {[%clk 0:00:20.2]} 35.
Kh2 {[%clk 0:00:23.1]} 35... Rg2+ {[%clk 0:00:20.3]} 36. Kh1 {[%clk 0:00:23.5]}
36... Rxc2+ {[%clk 0:00:19.4]} 37. Kg1 {[%clk 0:00:22.7]} 37... Rg2+ {[%clk
0:00:18.9]} 38. Kh1 {[%clk 0:00:23.2]} 38... Rf2+ {[%clk 0:00:17.4]} 39. Kg1
{[%clk 0:00:22]} 39... Rxf1+ {[%clk 0:00:17.4]} 40. Kxf1 {[%clk 0:00:22.9]}
40... Ne6 {[%clk 0:00:15]} 41. Be3 {[%clk 0:00:18.7]} 41... Bxb3 {[%clk
0:00:12.4]} 42. Ne7+ {[%clk 0:00:17.5]} 42... Kf7 {[%clk 0:00:12.4]} 43. Nxc6
{[%clk 0:00:18.4]} 43... Bc4+ {[%clk 0:00:11.8]} 44. Kf2 {[%clk 0:00:18.2]}
44... Kf6 {[%clk 0:00:10.5]} 45. Bd4+ {[%clk 0:00:17.8]} 45... Kf5 {[%clk
0:00:10.3]} 46. Kf3 {[%clk 0:00:18]} 46... Nxd4+ {[%clk 0:00:10.6]} 47. Ke3
{[%clk 0:00:18.5]} 47... Nxc6 {[%clk 0:00:09.9]} 48. Kd2 {[%clk 0:00:16.3]}
48... b4 {[%clk 0:00:09.9]} 49. Kc2 {[%clk 0:00:16.5]} 49... Ke4 {[%clk
0:00:10.3]} 50. Kb2 {[%clk 0:00:17.4]} 50... Kd4 {[%clk 0:00:10.6]} 51. Kc2
{[%clk 0:00:18.3]} 51... b3+ {[%clk 0:00:11.1]} 52. Kb2 {[%clk 0:00:19.2]} 52...
Kd3 {[%clk 0:00:11.5]} 53. Kc1 {[%clk 0:00:18.9]} 53... Kc3 {[%clk 0:00:11.9]}
54. Kb1 {[%clk 0:00:19.8]} 54... Bd3+ {[%clk 0:00:11]} 55. Kc1 {[%clk
0:00:18.4]} 55... b2+ {[%clk 0:00:11.1]} 56. Kd1 {[%clk 0:00:18.5]} 56... b1=Q#
{[%clk 0:00:12]} 0-1

[Event "*** Titled Tuesday Blitz"]
[Site "Chess.com"]
[Date "2020.03.03"]
[Round "8"]
[White "VerdeNotte"]
[Black "riconaipe"]
[Result "1-0"]
[WhiteElo "2752"]
[BlackElo "2551"]
[TimeControl "180+1"]
[EndTime "14:35:37 PST"]
[Termination "VerdeNotte won by resignation"]

1. Nf3 {[%clk 0:02:45.7]} 1... Nf6 {[%clk 0:02:58.1]} 2. c4 {[%clk 0:02:44]}
2... c5 {[%clk 0:02:56.8]} 3. Nc3 {[%clk 0:02:44.1]} 3... Nc6 {[%clk 0:02:45.3]}
4. d4 {[%clk 0:02:44.2]} 4... cxd4 {[%clk 0:02:45]} 5. Nxd4 {[%clk 0:02:44.6]}
5... g6 {[%clk 0:02:43.9]} 6. e4 {[%clk 0:02:44.5]} 6... Bg7 {[%clk 0:02:43.3]}
7. Nxc6 {[%clk 0:02:44.7]} 7... dxc6 {[%clk 0:02:43.5]} 8. Qxd8+ {[%clk
0:02:44.2]} 8... Kxd8 {[%clk 0:02:43.9]} 9. Bf4 {[%clk 0:02:44.1]} 9... Nd7
{[%clk 0:02:36.1]} 10. O-O-O {[%clk 0:02:43.7]} 10... e5 {[%clk 0:02:35.8]} 11.
Be3 {[%clk 0:02:42.7]} 11... Kc7 {[%clk 0:02:35.8]} 12. c5 {[%clk 0:02:42.1]}
12... Nf8 {[%clk 0:02:32.9]} 13. b4 {[%clk 0:02:40.6]} 13... Ne6 {[%clk
0:02:26.2]} 14. Bc4 {[%clk 0:02:39.6]} 14... Rf8 {[%clk 0:02:22.4]} 15. b5
{[%clk 0:02:34.8]} 15... Nd4 {[%clk 0:02:11.8]} 16. a4 {[%clk 0:02:33.7]} 16...
Be6 {[%clk 0:02:08.8]} 17. Bxe6 {[%clk 0:02:32.5]} 17... fxe6 {[%clk 0:02:08.7]}
18. f3 {[%clk 0:02:27.8]} 18... Rad8 {[%clk 0:02:06.3]} 19. Kb2 {[%clk
0:02:21.5]} 19... Rd7 {[%clk 0:02:04.1]} 20. Rd2 {[%clk 0:02:17.2]} 20... Rfd8
{[%clk 0:02:03.1]} 21. Rhd1 {[%clk 0:02:17.2]} 21... b6 {[%clk 0:02:01.9]} 22.
bxc6 {[%clk 0:02:09.1]} 22... Kxc6 {[%clk 0:02:01.6]} 23. cxb6 {[%clk
0:02:09.4]} 23... axb6 {[%clk 0:01:55.4]} 24. Nb5 {[%clk 0:02:09.3]} 24... Bf8
{[%clk 0:01:37.1]} 25. Bxd4 {[%clk 0:02:00.9]} 25... exd4 {[%clk 0:01:32.6]} 26.
e5 {[%clk 0:01:54.8]} 26... Bc5 {[%clk 0:01:22.5]} 27. Kb3 {[%clk 0:01:53.8]}
27... Rd5 {[%clk 0:01:16]} 28. f4 {[%clk 0:01:51.9]} 28... g5 {[%clk 0:01:16.3]}
29. g3 {[%clk 0:01:46.7]} 29... h5 {[%clk 0:01:09.2]} 30. Kc4 {[%clk 0:01:42.8]}
30... Ra8 {[%clk 0:01:09]} 31. Ra2 {[%clk 0:01:38.1]} 31... h4 {[%clk
0:01:05.1]} 32. Nxd4+ {[%clk 0:01:31.1]} 32... Bxd4 {[%clk 0:01:04.9]} 33. Rxd4
{[%clk 0:01:30.9]} 33... hxg3 {[%clk 0:01:04.2]} 34. hxg3 {[%clk 0:01:30]} 34...
gxf4 {[%clk 0:01:04.1]} 35. gxf4 {[%clk 0:01:29.7]} 35... Rf8 {[%clk 0:00:58]}
36. Rc2 {[%clk 0:01:25.4]} 36... Rc5+ {[%clk 0:00:33.7]} 37. Kd3 {[%clk
0:01:25.3]} 37... Rxc2 {[%clk 0:00:33.9]} 38. Kxc2 {[%clk 0:01:25.4]} 38... Kc5
{[%clk 0:00:34.3]} 39. Kd3 {[%clk 0:01:23.9]} 39... Rh8 {[%clk 0:00:32.1]} 40.
Rd6 {[%clk 0:01:22.1]} 40... Rh6 {[%clk 0:00:31]} 41. Ke4 {[%clk 0:01:20.6]}
41... Rg6 {[%clk 0:00:28.4]} 42. Ke3 {[%clk 0:01:16.6]} 42... Rh6 {[%clk
0:00:26.5]} 43. Kf3 {[%clk 0:01:16.2]} 43... Rg6 {[%clk 0:00:11.4]} 44. Kf2
{[%clk 0:01:09.1]} 44... Rh6 {[%clk 0:00:10.6]} 45. Kg3 {[%clk 0:01:09.2]} 45...
Rg6+ {[%clk 0:00:05.3]} 46. Kh4 {[%clk 0:01:08.3]} 46... Rg1 {[%clk 0:00:03.3]}
47. Rxe6 {[%clk 0:01:05.5]} 47... Ra1 {[%clk 0:00:04.2]} 48. Kg5 {[%clk
0:01:02.9]} 48... Rxa4 {[%clk 0:00:04.8]} 49. Rd6 {[%clk 0:01:01.6]} 49... b5
{[%clk 0:00:04.9]} 50. Rd8 {[%clk 0:00:58.8]} 50... b4 {[%clk 0:00:05.2]} 51. e6
{[%clk 0:00:59]} 51... Ra7 {[%clk 0:00:04.1]} 52. Kf6 {[%clk 0:00:56.8]} 52...
b3 {[%clk 0:00:03.7]} 53. e7 {[%clk 0:00:57]} 53... Ra6+ {[%clk 0:00:03.7]} 54.
Kf7 {[%clk 0:00:55.5]} 54... b2 {[%clk 0:00:02.4]} 55. e8=Q {[%clk 0:00:52.5]}
55... b1=Q {[%clk 0:00:02.1]} 56. Qe5+ {[%clk 0:00:50.9]} 56... Kc4 {[%clk
0:00:01.6]} 57. Qd4+ {[%clk 0:00:46.3]} 57... Kb3 {[%clk 0:00:02.5]} 58. Rb8+
{[%clk 0:00:44.5]} 58... Ka2 {[%clk 0:00:02.8]} 59. Qc4+ {[%clk 0:00:44]} 59...
Ka1 {[%clk 0:00:02.2]} 60. Rxb1+ {[%clk 0:00:40.2]} 60... Kxb1 {[%clk
0:00:02.2]} 61. Qxa6 {[%clk 0:00:40.1]} 61... Kb2 {[%clk 0:00:03.1]} 1-0

[Event "*** Titled Tuesday Blitz"]
[Site "Chess.com"]
[Date "2020.03.03"]
[Round "8"]
[White "MartinMatthiesen"]
[Black "WeAintSurePal"]
[Result "1-0"]
[WhiteElo "2602"]
[BlackElo "2341"]
[TimeControl "180+1"]
[EndTime "14:35:42 PST"]
[Termination "MartinMatthiesen won by checkmate"]

1. d4 {[%clk 0:03:00.9]} 1... d5 {[%clk 0:02:58.9]} 2. c4 {[%clk 0:02:59.8]}
2... e6 {[%clk 0:02:57.5]} 3. Nc3 {[%clk 0:02:58.9]} 3... Nf6 {[%clk 0:02:57.5]}
4. Nf3 {[%clk 0:02:57.8]} 4... Be7 {[%clk 0:02:56.9]} 5. Bf4 {[%clk 0:02:57.1]}
5... O-O {[%clk 0:02:56]} 6. e3 {[%clk 0:02:57.1]} 6... c5 {[%clk 0:02:56.1]} 7.
dxc5 {[%clk 0:02:56.2]} 7... Bxc5 {[%clk 0:02:57]} 8. Qc2 {[%clk 0:02:55.7]}
8... Nc6 {[%clk 0:02:54.6]} 9. a3 {[%clk 0:02:55.7]} 9... Qa5 {[%clk 0:02:47.6]}
10. Nd2 {[%clk 0:02:46]} 10... Be7 {[%clk 0:02:38.2]} 11. Rd1 {[%clk 0:02:29.4]}
11... e5 {[%clk 0:02:33]} 12. Nb3 {[%clk 0:02:19.7]} 12... Qd8 {[%clk
0:02:24.2]} 13. Bg5 {[%clk 0:02:12.5]} 13... d4 {[%clk 0:02:23.7]} 14. Bxf6
{[%clk 0:02:10.5]} 14... Bxf6 {[%clk 0:02:23.4]} 15. Nd5 {[%clk 0:02:10.3]}
15... Be6 {[%clk 0:02:23.2]} 16. Bd3 {[%clk 0:02:00]} 16... h6 {[%clk
0:02:22.8]} 17. Be4 {[%clk 0:01:54.8]} 17... Be7 {[%clk 0:02:06.7]} 18. O-O
{[%clk 0:01:50.5]} 18... Rc8 {[%clk 0:02:04]} 19. Bf5 {[%clk 0:01:24.9]} 19...
Qd7 {[%clk 0:02:01.6]} 20. Bxe6 {[%clk 0:01:23.8]} 20... Qxe6 {[%clk 0:01:51.3]}
21. exd4 {[%clk 0:01:16.7]} 21... Bf6 {[%clk 0:01:36]} 22. Rfe1 {[%clk
0:01:08.3]} 22... Rfe8 {[%clk 0:01:28.4]} 23. Qd2 {[%clk 0:00:39.2]} 23... e4
{[%clk 0:01:21.9]} 24. Nc5 {[%clk 0:00:34.1]} 24... Qf5 {[%clk 0:01:18.2]} 25.
Nxf6+ {[%clk 0:00:30.7]} 25... Qxf6 {[%clk 0:01:18.8]} 26. Nxe4 {[%clk 0:00:30]}
26... Qg6 {[%clk 0:01:16.3]} 27. f3 {[%clk 0:00:29.4]} 27... Rcd8 {[%clk
0:01:08.9]} 28. d5 {[%clk 0:00:29]} 28... Ne5 {[%clk 0:01:09]} 29. Kh1 {[%clk
0:00:28.9]} 29... Nxc4 {[%clk 0:01:06.4]} 30. Qd4 {[%clk 0:00:24.6]} 30... Nd6
{[%clk 0:00:57.6]} 31. Nc3 {[%clk 0:00:13.5]} 31... Nf5 {[%clk 0:00:56.1]} 32.
Qxa7 {[%clk 0:00:12.7]} 32... Qg5 {[%clk 0:00:45.5]} 33. Qf2 {[%clk 0:00:11.7]}
33... h5 {[%clk 0:00:41.2]} 34. Kg1 {[%clk 0:00:11.9]} 34... g6 {[%clk
0:00:39.9]} 35. Ne4 {[%clk 0:00:11.1]} 35... Qe7 {[%clk 0:00:36.9]} 36. d6
{[%clk 0:00:08.7]} 36... Qe6 {[%clk 0:00:34.4]} 37. g4 {[%clk 0:00:05.5]} 37...
hxg4 {[%clk 0:00:31.4]} 38. fxg4 {[%clk 0:00:05.8]} 38... Nxd6 {[%clk
0:00:28.6]} 39. Nf6+ {[%clk 0:00:05.5]} 39... Kg7 {[%clk 0:00:24.1]} 40. Nxe8+
{[%clk 0:00:05]} 40... Rxe8 {[%clk 0:00:22]} 41. Rxe6 {[%clk 0:00:04.7]} 41...
Rxe6 {[%clk 0:00:22.9]} 42. Qd4+ {[%clk 0:00:04.6]} 42... Kf8 {[%clk 0:00:20.7]}
43. Qxd6+ {[%clk 0:00:04.7]} 43... Rxd6 {[%clk 0:00:21.6]} 44. Rxd6 {[%clk
0:00:05.1]} 44... Ke7 {[%clk 0:00:22.5]} 45. Rb6 {[%clk 0:00:05.8]} 45... f5
{[%clk 0:00:23.4]} 46. Rxb7+ {[%clk 0:00:06.1]} 46... Kf6 {[%clk 0:00:23.6]} 47.
Rb4 {[%clk 0:00:06.1]} 47... fxg4 {[%clk 0:00:24.5]} 48. Kg2 {[%clk 0:00:06.3]}
48... Kf5 {[%clk 0:00:25.4]} 49. Kg3 {[%clk 0:00:06.8]} 49... g5 {[%clk
0:00:26.3]} 50. Rxg4 {[%clk 0:00:06.1]} 50... Kg6 {[%clk 0:00:27.2]} 51. a4
{[%clk 0:00:06.5]} 51... Kh6 {[%clk 0:00:28.1]} 52. a5 {[%clk 0:00:07.1]} 52...
Kh5 {[%clk 0:00:29]} 53. a6 {[%clk 0:00:07.7]} 53... Kh6 {[%clk 0:00:29.9]} 54.
a7 {[%clk 0:00:08.6]} 54... Kh5 {[%clk 0:00:30.8]} 55. Ra4 {[%clk 0:00:09.2]}
55... Kh6 {[%clk 0:00:29.6]} 56. a8=Q {[%clk 0:00:10.1]} 56... Kh5 {[%clk
0:00:30.5]} 57. Qe8+ {[%clk 0:00:09.9]} 57... Kh6 {[%clk 0:00:30.2]} 58. Ra6+
{[%clk 0:00:10.8]} 58... Kg7 {[%clk 0:00:31.1]} 59. Qd7+ {[%clk 0:00:10.9]}
59... Kh8 {[%clk 0:00:32]} 60. Ra8# {[%clk 0:00:11.8]} 1-0

[Event "*** Titled Tuesday Blitz"]
[Site "Chess.com"]
[Date "2020.03.03"]
[Round "8"]
[White "SloLev"]
[Black "vlad_Sid"]
[Result "0-1"]
[WhiteElo "2524"]
[BlackElo "2690"]
[TimeControl "180+1"]
[EndTime "14:35:47 PST"]
[Termination "vlad_Sid won by resignation"]

1. e4 {[%clk 0:03:00.9]} 1... c6 {[%clk 0:03:00]} 2. d4 {[%clk 0:02:51.7]} 2...
d5 {[%clk 0:03:00.9]} 3. exd5 {[%clk 0:02:52.5]} 3... cxd5 {[%clk 0:03:01.8]} 4.
c4 {[%clk 0:02:53]} 4... Nf6 {[%clk 0:03:01.2]} 5. Nc3 {[%clk 0:02:53.5]} 5...
Nc6 {[%clk 0:03:01.6]} 6. Be3 {[%clk 0:02:50.7]} 6... g6 {[%clk 0:03:00.9]} 7.
Nf3 {[%clk 0:02:46.2]} 7... Bg7 {[%clk 0:03:01]} 8. c5 {[%clk 0:02:46.4]} 8...
O-O {[%clk 0:03:00.6]} 9. Be2 {[%clk 0:02:45.3]} 9... Bg4 {[%clk 0:02:53.1]} 10.
Rb1 {[%clk 0:02:24.9]} 10... Ne4 {[%clk 0:02:40]} 11. h3 {[%clk 0:02:19.2]}
11... Bf5 {[%clk 0:02:37.2]} 12. Bd3 {[%clk 0:02:11.3]} 12... Qa5 {[%clk
0:02:28]} 13. O-O {[%clk 0:02:05.2]} 13... Nxc3 {[%clk 0:02:22.2]} 14. bxc3
{[%clk 0:02:05.4]} 14... Bxd3 {[%clk 0:02:19.5]} 15. Qxd3 {[%clk 0:02:06.3]}
15... Qc7 {[%clk 0:02:17.5]} 16. g3 {[%clk 0:01:59.2]} 16... Rad8 {[%clk
0:02:10.8]} 17. Bf4 {[%clk 0:01:55]} 17... Qd7 {[%clk 0:01:24.2]} 18. Rfe1
{[%clk 0:01:50.2]} 18... f6 {[%clk 0:01:21.6]} 19. Qb5 {[%clk 0:01:48.6]} 19...
e5 {[%clk 0:01:18.8]} 20. Be3 {[%clk 0:01:47.4]} 20... Qxh3 {[%clk 0:01:10.7]}
21. Qxb7 {[%clk 0:01:43.9]} 21... Qe6 {[%clk 0:01:09.3]} 22. Kg2 {[%clk
0:01:16.7]} 22... e4 {[%clk 0:01:02.7]} 23. Nd2 {[%clk 0:01:14.2]} 23... Rf7
{[%clk 0:01:00.2]} 24. Qb5 {[%clk 0:01:06.2]} 24... f5 {[%clk 0:00:57.7]} 25. f4
{[%clk 0:00:57.3]} 25... h5 {[%clk 0:00:51.8]} 26. Nf1 {[%clk 0:00:43.9]} 26...
Bf6 {[%clk 0:00:49]} 27. Bf2 {[%clk 0:00:44.1]} 27... h4 {[%clk 0:00:47.2]} 28.
Ne3 {[%clk 0:00:38.5]} 28... hxg3 {[%clk 0:00:34.7]} 29. Bxg3 {[%clk 0:00:39.4]}
29... g5 {[%clk 0:00:35]} 30. Qa6 {[%clk 0:00:22.9]} 30... Nxd4 {[%clk
0:00:29.5]} 31. Qxe6 {[%clk 0:00:21.7]} 31... Nxe6 {[%clk 0:00:30.3]} 32. Nxf5
{[%clk 0:00:20.9]} 32... gxf4 {[%clk 0:00:28.6]} 33. Nh6+ {[%clk 0:00:19.8]}
33... Kg7 {[%clk 0:00:25.9]} 34. Nxf7 {[%clk 0:00:20.7]} 34... Kxf7 {[%clk
0:00:26.8]} 35. Bf2 {[%clk 0:00:18.4]} 35... Bxc3 {[%clk 0:00:21.8]} 36. Rb7+
{[%clk 0:00:17.3]} 36... Kg6 {[%clk 0:00:21.7]} 37. Rh1 {[%clk 0:00:17.4]} 37...
f3+ {[%clk 0:00:16.5]} 38. Kf1 {[%clk 0:00:17]} 38... d4 {[%clk 0:00:16.5]} 39.
c6 {[%clk 0:00:15.3]} 39... e3 {[%clk 0:00:16.3]} 40. Bh4 {[%clk 0:00:14.9]}
40... Rd6 {[%clk 0:00:11.5]} 41. Rg1+ {[%clk 0:00:14.6]} 41... Kf5 {[%clk
0:00:09.2]} 42. Rf7+ {[%clk 0:00:14.6]} 42... Ke4 {[%clk 0:00:08.9]} 43. c7
{[%clk 0:00:15.1]} 43... Nxc7 {[%clk 0:00:04.2]} 44. Rxc7 {[%clk 0:00:14]} 44...
Rb6 {[%clk 0:00:02.7]} 45. Rg4+ {[%clk 0:00:12.1]} 45... Kd3 {[%clk 0:00:03.6]}
46. Kg1 {[%clk 0:00:11.4]} 46... Rb1+ {[%clk 0:00:04.1]} 47. Kh2 {[%clk
0:00:11.9]} 47... f2 {[%clk 0:00:04.1]} 48. Rf7 {[%clk 0:00:08.2]} 48... f1=Q
{[%clk 0:00:04.1]} 49. Rxf1 {[%clk 0:00:08.7]} 49... Rxf1 {[%clk 0:00:05]} 50.
Kg2 {[%clk 0:00:07.5]} 50... Ra1 {[%clk 0:00:05.2]} 51. Rg7 {[%clk 0:00:06.1]}
51... Rxa2+ {[%clk 0:00:06.1]} 52. Kf3 {[%clk 0:00:06.1]} 52... a5 {[%clk
0:00:06.4]} 53. Re7 {[%clk 0:00:05.2]} 53... a4 {[%clk 0:00:07.3]} 54. Bf6
{[%clk 0:00:04.8]} 54... a3 {[%clk 0:00:07.9]} 55. Rd7 {[%clk 0:00:04.5]} 55...
Rf2+ {[%clk 0:00:08.3]} 56. Kg3 {[%clk 0:00:04.6]} 56... Rxf6 {[%clk 0:00:09.2]}
0-1